bitfinex/quotes_BTCUSD_20210402
["timestamp","ask_amount","ask_price","bid_price","bid_amount"]
[1617368869120,0.5,59383.0,59382.0,0.137]
[1617368869320,0.5,59383.0,59382.0,0.037]
[1617368869522,0.5,59383.0,59382.0,0.0002]
[1617368869721,0.888006,59383.0,59382.0,0.0002]
[1617368870369,0.888006,59383.0,59376.0,0.995]
[1617368870568,0.5,59383.0,59377.0,0.04]
[1617368870774,0.50750735,59383.0,59378.0,0.995]
[1617368870964,0.50750735,59383.0,59379.0,0.04]
[1617368871168,0.50750735,59383.0,59380.0,0.995]
[1617368871365,0.00051925,59382.0,59381.0,0.04]
[1617368871562,0.00051925,59382.0,59381.0,1.035]
[1617368871766,0.00051925,59382.0,59381.0,1.15]
[1617368871965,0.00051925,59382.0,59381.0,1.185]
[1617368872167,0.00051925,59382.0,59381.0,0.195]
[1617368872370,0.00051925,59382.0,59381.0,0.295]
[1617368872566,0.00051925,59382.0,59381.0,1.285]
[1617368873165,0.00051925,59382.0,59381.0,1.46781999]
[1617368873364,0.00051925,59382.0,59381.0,1.285]
[1617368873566,0.00051925,59382.0,59381.0,1.46781999]
[1617368873770,0.00051925,59382.0,59381.0,0.47781999]
[1617368873965,0.00051925,59382.0,59381.0,0.295]
[1617368874570,0.00051925,59382.0,59381.0,0.195]
[1617368874768,0.00051925,59382.0,59381.0,0.295]
[1617368875369,0.00051925,59382.0,59381.0,1.285]
[1617368875590,0.00051925,59382.0,59381.0,0.47781999]
[1617368876188,0.00051925,59382.0,59381.0,0.295]
[1617368876390,0.81802672,59382.0,59381.0,0.245]
[1617368876587,0.00802672,59382.0,59381.0,0.245]
[1617368876789,0.00802672,59382.0,59378.0,0.004]
[1617368876993,0.29586482,59382.0,59377.0,0.14]
[1617368877190,0.67453482,59382.0,59377.0,0.04]
[1617368877387,0.285,59381.0,59377.0,0.04]
[1617368877590,0.5,59380.0,59377.0,0.04]
[1617368877790,0.5,59380.0,59376.0,0.33692]
[1617368877990,0.295,59379.0,59377.0,0.99]
[1617368878217,0.5,59380.0,59377.0,0.99]
[1617368878417,0.5,59380.0,59376.0,0.33692]
[1617368878619,0.5,59380.0,59374.0,0.942]
[1617368878819,0.388006,59379.0,59374.0,0.1002]
[1617368879017,0.633006,59379.0,59374.0,0.1402]
[1617368879417,0.633006,59379.0,59374.0,0.1002]
[1617368879620,0.34,59378.0,59374.0,0.0002]
[1617368879822,0.5,59376.0,59374.0,0.0002]
[1617368880098,0.5,59376.0,59374.0,0.1402]
[1617368880694,0.5,59376.0,59374.0,0.32301999]
[1617368880891,0.5,59376.0,59374.0,0.18301999]
[1617368881096,0.5,59376.0,59374.0,0.0002]
[1617368881297,0.5,59376.0,59374.0,0.18301999]
[1617368881495,0.5,59376.0,59375.0,0.99]
[1617368881698,0.5,59376.0,59375.0,0.985]
[1617368881895,0.5,59376.0,59374.0,1.30801999]
[1617368882096,0.5,59376.0,59375.0,0.985]
[1617368882292,0.5,59376.0,59374.0,0.18301999]
[1617368882892,0.5,59376.0,59374.0,1.16801999]
[1617368883093,0.5,59376.0,59374.0,0.18301999]
[1617368883491,0.5,59376.0,59374.0,0.0002]
[1617368883894,0.5,59376.0,59373.0,0.5586]
[1617368884090,0.5,59376.0,59373.0,0.74141999]
[1617368884498,0.5,59376.0,59373.0,0.5586]
[1617368884694,0.5,59376.0,59373.0,0.74141999]
[1617368884893,0.5,59376.0,59375.0,0.00027249]
[1617368886697,0.49,59376.0,59375.0,0.00027249]
[1617368887099,0.49,59376.0,59375.0,0.14527249]
[1617368887298,0.49,59376.0,59375.0,0.00027249]
[1617368887701,0.49964873,59376.0,59375.0,0.00027249]
[1617368893344,0.49964873,59376.0,59375.0,0.05027249]
[1617368894869,0.49464873,59376.0,59375.0,0.05027249]
[1617368895134,0.49464873,59376.0,59375.0,0.20027249]
[1617368895334,0.49464873,59376.0,59375.0,0.05027249]
[1617368895734,0.49464873,59376.0,59375.0,0.05053516]
[1617368897535,0.39464873,59376.0,59375.0,0.05053516]
[1617368897735,0.53669453,59376.0,59375.0,0.05053516]
[1617368898538,0.86280453,59376.0,59375.0,0.05053516]
[1617368898735,1.10876473,59376.0,59375.0,0.05053516]
[1617368899133,1.37876473,59376.0,59375.0,0.05053516]
[1617368899739,1.52372678,59376.0,59375.0,0.05053516]
[1617368900141,1.25372678,59376.0,59375.0,0.05053516]
[1617368900340,1.25081053,59376.0,59375.0,0.05053516]
[1617368900538,1.08233553,59376.0,59375.0,0.05053516]
[1617368900739,0.86581053,59376.0,59375.0,0.05053516]
[1617368901140,1.02581053,59376.0,59375.0,0.05053516]
[1617368901537,1.02581053,59376.0,59375.0,0.04553516]
[1617368903154,0.47780453,59376.0,59375.0,0.04553516]
[1617368903357,0.15169453,59376.0,59375.0,0.04553516]
[1617368903553,0.00964873,59376.0,59375.0,0.04553516]
[1617368904774,0.30590873,59376.0,59375.0,0.04553516]
[1617368905175,0.69391473,59376.0,59375.0,0.04553516]
[1617368905370,0.90391473,59376.0,59375.0,0.04553516]
[1617368905775,0.90391473,59376.0,59375.0,1.03053516]
[1617368905979,0.30590873,59376.0,59375.0,1.21335515]
[1617368906184,0.00964873,59376.0,59375.0,1.95436115]
[1617368906378,0.00964873,59376.0,59375.0,2.94336115]
[1617368906579,0.6865,59378.0,59375.0,3.64836115]
[1617368906580,0.00291642,59377.0,59375.0,3.64836115]
[1617368906770,0.00291642,59377.0,59376.0,1.38794974]
[1617368906977,0.39819667,59378.0,59377.0,2.595]
[1617368907204,0.35925073,59378.0,59377.0,0.755]
[1617368907399,0.19080173,59378.0,59377.0,0.755]
[1617368907600,0.19080173,59378.0,59377.0,0.342675]
[1617368907800,0.02234973,59378.0,59377.0,0.342675]
[1617368908201,0.02234973,59378.0,59377.0,0.442675]
[1617368908399,0.02234973,59378.0,59377.0,0.797675]
[1617368909399,0.02234973,59378.0,59377.0,1.08153408]
[1617368910026,0.02234973,59378.0,59377.0,1.04153408]
[1617368910873,0.02234973,59378.0,59377.0,0.757675]
[1617368911076,0.02234973,59378.0,59377.0,1.50453408]
[1617368911275,0.02234973,59378.0,59377.0,1.04153408]
[1617368912078,0.02234973,59378.0,59377.0,1.42955408]
[1617368912278,0.02234973,59378.0,59377.0,1.145695]
[1617368913081,0.02234973,59378.0,59377.0,0.757675]
[1617368913480,0.02985771,59378.0,59377.0,1.145695]
[1617368913679,0.02985771,59378.0,59377.0,0.79302]
[1617368914077,0.02985771,59378.0,59377.0,0.405]
[1617368915278,0.02985771,59378.0,59377.0,0.45053516]
[1617368915678,0.02985771,59378.0,59377.0,0.83855516]
[1617368915878,0.02985771,59378.0,59377.0,0.45053516]
[1617368916278,0.02985771,59378.0,59377.0,1.43553516]
[1617368916492,0.02985771,59378.0,59377.0,2.76180516]
[1617368916693,0.1420458,59389.0,59378.0,3.62]
[1617368916894,0.01950116,59383.0,59382.0,0.87796374]
[1617368917095,0.01561946,59392.0,59385.0,0.00303724]
[1617368917291,0.0585522,59401.0,59388.0,0.126281]
[1617368917487,0.0585522,59401.0,59395.0,0.0034]
[1617368917711,0.05857377,59403.0,59399.0,0.0066]
[1617368917913,0.05857864,59404.0,59402.0,0.0034]
[1617368918108,0.02798758,59410.0,59404.0,0.39191836]
[1617368918109,0.05860058,59407.0,59404.0,0.39191836]
[1617368918307,0.02798758,59410.0,59405.0,2.45978373]
[1617368918506,0.02798758,59410.0,59406.0,0.39994374]
[1617368918707,0.02798758,59410.0,59408.0,1.11678757]
[1617368918907,0.02798758,59410.0,59409.0,0.88802]
[1617368919116,0.02798758,59410.0,59409.0,0.89994374]
[1617368919314,0.02798758,59410.0,59409.0,1.38]
[1617368919703,0.42798758,59410.0,59409.0,1.38]
[1617368919907,0.80600758,59410.0,59409.0,1.38]
[1617368920109,1.18701498,59410.0,59409.0,1.38]
[1617368920333,1.03100758,59410.0,59409.0,1.38]
[1617368920534,1.43100758,59410.0,59409.0,1.38]
[1617368921334,1.53100758,59410.0,59409.0,1.38]
[1617368921735,1.83140661,59410.0,59398.0,0.5]
[1617368921933,0.38802,59406.0,59396.0,0.5]
[1617368922139,0.38802,59402.0,59399.0,0.5]
[1617368922338,0.301,59400.0,59399.0,0.5]
[1617368922531,0.40605459,59400.0,59399.0,0.5]
[1617368922735,0.80605459,59400.0,59399.0,0.5]
[1617368922954,1.19407459,59400.0,59399.0,0.5]
[1617368923156,1.39407459,59400.0,59399.0,0.5]
[1617368923553,1.64443719,59400.0,59399.0,0.5]
[1617368923755,1.39407459,59400.0,59399.0,1.38]
[1617368923959,1.64455603,59400.0,59399.0,1.38]
[1617368924957,1.24455603,59400.0,59399.0,1.38]
[1617368925227,0.99407459,59400.0,59399.0,1.38]
[1617368925626,0.60605459,59400.0,59399.0,1.38]
[1617368926231,0.74810039,59400.0,59399.0,1.42553516]
[1617368926427,1.54810039,59400.0,59399.0,1.42553516]
[1617368926626,1.13612039,59400.0,59399.0,1.42553516]
[1617368927825,1.53612039,59400.0,59399.0,1.42553516]
[1617368928429,3.68612039,59400.0,59399.0,1.42553516]
[1617368928826,1.53612039,59400.0,59399.0,1.42553516]
[1617368929425,2.45612039,59400.0,59399.0,1.42637691]
[1617368929630,1.53612039,59400.0,59399.0,1.42637691]
[1617368931427,2.26612039,59400.0,59399.0,1.42637691]
[1617368931627,2.26612039,59400.0,59399.0,0.54637691]
[1617368931628,1.53612039,59400.0,59399.0,0.54637691]
[1617368932225,1.53612039,59400.0,59399.0,1.42637691]
[1617368932633,1.53612039,59400.0,59399.0,0.54637691]
[1617368933452,2.27612039,59400.0,59399.0,0.54637691]
[1617368934050,1.53612039,59400.0,59399.0,0.54637691]
[1617368934849,1.13612039,59400.0,59399.0,0.54637691]
[1617368935050,0.99407459,59400.0,59399.0,0.54637691]
[1617368935450,1.82407459,59400.0,59399.0,0.54637691]
[1617368935651,0.99407459,59400.0,59399.0,0.54637691]
[1617368936277,1.81407459,59400.0,59399.0,0.54637691]
[1617368936675,2.06308835,59400.0,59399.0,0.54637691]
[1617368937477,3.57308835,59400.0,59399.0,0.54637691]
[1617368937886,3.57308835,59400.0,59399.0,0.04637691]
[1617368937887,4.03145447,59400.0,59399.0,0.04637691]
[1617368938083,4.03145447,59400.0,59399.0,0.54637691]
[1617368938286,5.35308835,59400.0,59399.0,0.54637691]
[1617368939120,4.07308835,59400.0,59399.0,0.54637691]
[1617368939522,3.97308835,59400.0,59399.0,0.54637691]
[1617368940974,3.97308835,59400.0,59399.0,0.04637691]
[1617368941174,3.97308835,59400.0,59399.0,0.54637691]
[1617368941378,5.51708835,59400.0,59399.0,0.54637691]
[1617368941584,5.56708835,59400.0,59399.0,0.04637691]
[1617368941778,5.26608835,59400.0,59399.0,0.04637691]
[1617368941982,5.56708835,59400.0,59398.0,5.56e-05]
[1617368942181,1.92935,59399.0,59385.0,0.5]
[1617368942385,0.158,59389.0,59385.0,0.5]
[1617368942584,0.35695118,59388.0,59385.0,0.5]
[1617368942779,0.78802,59386.0,59385.0,0.5]
[1617368943183,0.89221666,59386.0,59385.0,0.5]
[1617368943377,1.4814383,59386.0,59385.0,0.5]
[1617368943776,1.45120772,59386.0,59385.0,0.5]
[1617368944181,1.45120772,59386.0,59379.0,0.5]
[1617368944182,1.20221666,59386.0,59379.0,0.5]
[1617368944379,0.38802,59382.0,59379.0,0.5]
[1617368944579,0.44634093,59380.0,59379.0,0.5]
[1617368944983,0.49233078,59380.0,59379.0,0.5]
[1617368945782,0.89233078,59380.0,59379.0,0.5]
[1617368945978,1.06733078,59380.0,59379.0,0.5]
[1617368947184,1.06733078,59380.0,59374.0,0.0052]
[1617368947384,0.252747,59377.0,59374.0,0.0052]
[1617368947586,0.252747,59377.0,59372.0,0.0002]
[1617368947788,0.14,59376.0,59372.0,0.0002]
[1617368947986,0.41922164,59376.0,59372.0,0.0002]
[1617368948589,0.14,59376.0,59372.0,0.0002]
[1617368948984,0.175,59375.0,59372.0,0.0002]
[1617368949202,0.427748,59375.0,59372.0,0.0002]
[1617368949400,0.252748,59375.0,59372.0,0.0002]
[1617368950204,0.252748,59375.0,59372.0,0.5002]
[1617368950401,0.252748,59375.0,59372.0,0.308439]
[1617368950805,0.14,59374.0,59372.0,0.308439]
[1617368951205,0.14,59374.0,59372.0,0.303439]
[1617368952038,3.23802,59373.0,59372.0,0.303439]
[1617368952239,1.43802,59373.0,59372.0,0.303439]
[1617368952436,2.18802,59373.0,59372.0,0.303439]
[1617368953437,2.18802,59373.0,59372.0,0.00155644]
[1617368953839,1.13802,59373.0,59372.0,0.00155644]
[1617368956349,0.38802,59373.0,59372.0,0.00155644]
[1617368959387,0.62552861,59373.0,59372.0,0.00155644]
[1617368962015,2.21527045,59373.0,59372.0,0.00155644]
[1617368963043,1.93552861,59373.0,59372.0,0.00155644]
[1617368963439,0.62552861,59373.0,59372.0,0.00155644]
[1617368963641,0.90527045,59373.0,59372.0,0.00155644]
[1617368963842,0.62552861,59373.0,59372.0,0.00155644]
[1617368965062,1.66552861,59373.0,59372.0,0.00155644]
[1617368965257,0.62552861,59373.0,59372.0,0.00155644]
[1617368965859,0.68373728,59373.0,59372.0,0.00155644]
[1617368966659,0.62552861,59373.0,59372.0,0.00155644]
[1617368968486,0.68374044,59373.0,59372.0,0.00155644]
[1617368968682,0.62552861,59373.0,59372.0,0.00155644]
[1617368969485,0.68374563,59373.0,59372.0,0.00155644]
[1617368970117,0.62552861,59373.0,59372.0,0.00155644]
[1617368970353,0.39552861,59373.0,59371.0,0.29999544]
[1617368970548,0.00750861,59373.0,59371.0,0.29999544]
[1617368970744,0.10413899,59372.0,59371.0,0.29999544]
[1617368971151,0.10413899,59372.0,59371.0,0.44999544]
[1617368971348,0.10413899,59372.0,59371.0,1.02083543]
[1617368971557,0.10413899,59372.0,59371.0,1.30057727]
[1617368971746,0.10413899,59372.0,59371.0,1.20083543]
[1617368972347,0.10413899,59372.0,59371.0,2.42583543]
[1617368972546,0.10413899,59372.0,59371.0,1.44083543]
[1617368972955,0.10413899,59372.0,59371.0,1.25801544]
[1617368973157,0.10413899,59372.0,59371.0,1.15801544]
[1617368973754,0.10413899,59372.0,59371.0,0.91801544]
[1617368974968,1.95413899,59372.0,59371.0,0.29999544]
[1617368975165,0.49242859,59372.0,59371.0,0.00104215]
[1617368975367,0.49242859,59372.0,59371.0,0.00149226]
[1617368975566,1.03759383,59372.0,59371.0,0.00149226]
[1617368976767,0.68242859,59372.0,59371.0,0.00149226]
[1617368977172,0.96217043,59372.0,59371.0,0.00126226]
[1617368977382,0.96217043,59372.0,59371.0,0.00026226]
[1617368977383,2.55499567,59372.0,59371.0,0.00026226]
[1617368977580,3.61,59371.0,59367.0,0.0002]
[1617368977779,0.38802,59368.0,59354.0,0.0002]
[1617368977993,3.88974184,59364.0,59354.0,0.0002]
[1617368978189,4.79492708,59364.0,59354.0,0.0002]
[1617368978392,5.23415912,59364.0,59363.0,0.0902]
[1617368978593,5.21820323,59364.0,59363.0,0.0902]
[1617368978793,4.21800724,59363.0,59354.0,0.0002]
[1617368978987,6.27840725,59363.0,59354.0,0.0002]
[1617368979587,6.77840725,59363.0,59354.0,0.0002]
[1617368979791,6.77840725,59363.0,59362.0,0.2502]
[1617368979987,6.82324201,59363.0,59362.0,0.2502]
[1617368980386,7.22324201,59363.0,59362.0,0.2502]
[1617368980617,7.22324201,59363.0,59362.0,0.0002]
[1617368980822,6.82245079,59363.0,59362.0,0.0002]
[1617368981017,6.66145079,59363.0,59362.0,0.0002]
[1617368981218,6.66145079,59363.0,59362.0,0.2502]
[1617368981418,6.81845079,59363.0,59362.0,0.2502]
[1617368981620,6.91845079,59363.0,59362.0,0.2502]
[1617368982018,6.66145079,59363.0,59362.0,0.2502]
[1617368982617,6.66145079,59363.0,59362.0,0.5402]
[1617368983444,6.64568359,59363.0,59362.0,0.5402]
[1617368983643,6.64568359,59363.0,59362.0,0.5902]
[1617368985241,6.65319346,59363.0,59362.0,0.5902]
[1617368985498,6.65319346,59363.0,59362.0,0.5852]
[1617368985697,6.65367786,59363.0,59362.0,0.5852]
[1617368986300,6.65367786,59363.0,59362.0,0.636393]
[1617368986498,6.25367786,59363.0,59362.0,0.5852]
[1617368987098,6.6088431,59363.0,59362.0,0.5852]
[1617368987298,6.65895321,59363.0,59362.0,0.5852]
[1617368987499,7.0088431,59363.0,59362.0,0.0452]
[1617368987706,7.1698431,59363.0,59362.0,0.0452]
[1617368987900,7.0088431,59363.0,59362.0,0.0452]
[1617368988299,7.0088431,59363.0,59362.0,0.5852]
[1617368989701,6.65367786,59363.0,59362.0,0.5852]
[1617368990304,6.81867786,59363.0,59362.0,0.0452]
[1617368990498,7.26558786,59363.0,59362.0,0.0452]
[1617368991112,7.26558786,59363.0,59362.0,0.5852]
[1617368991315,7.10058786,59363.0,59362.0,0.5852]
[1617368991721,7.10058786,59363.0,59354.0,0.0002]
[1617368991722,0.3758908,59362.0,59354.0,0.0002]
[1617368991924,0.163,59357.0,59354.0,0.0002]
[1617368992119,0.57,59356.0,59354.0,0.0002]
[1617368992321,0.57,59356.0,59353.0,0.0002]
[1617368992322,0.57,59354.0,59353.0,0.0002]
[1617368992520,0.2758908,59352.0,59350.0,0.0102]
[1617368992728,5.65968524,59351.0,59349.0,0.0002]
[1617368992943,1.30318524,59350.0,59333.0,0.0002]
[1617368993133,1.30318524,59350.0,59325.0,0.0202]
[1617368993134,0.56,59333.0,59325.0,0.0202]
[1617368993325,1.4475,59326.0,59325.0,0.0202]
[1617368993527,1.68,59325.0,59322.0,0.0004]
[1617368993745,3.99802,59323.0,59322.0,0.0004]
[1617368993946,3.99802,59323.0,59322.0,0.5404]
[1617368994145,3.99802,59323.0,59322.0,0.0004]
[1617368994146,4.39802,59323.0,59322.0,0.0004]
[1617368994346,0.56,59322.0,59320.0,0.0002]
[1617368994541,3.84318524,59321.0,59320.0,0.0002]
[1617368994744,3.84318524,59321.0,59315.0,0.00066]
[1617368994745,4.17793524,59321.0,59315.0,0.00066]
[1617368994953,0.38802,59317.0,59311.0,0.00154]
[1617368995149,0.38802,59313.0,59311.0,0.00154]
[1617368995346,4.00318524,59312.0,59311.0,0.54154]
[1617368995750,0.91,59311.0,59309.0,0.98796]
[1617368995949,3.89502,59310.0,59309.0,0.98796]
[1617368996144,5.14018524,59310.0,59309.0,0.98796]
[1617368996366,5.28502,59310.0,59309.0,0.98796]
[1617368996569,5.28502,59310.0,59298.0,0.00062]
[1617368996570,0.91,59309.0,59298.0,0.00062]
[1617368996773,0.38802,59306.0,59298.0,0.00062]
[1617368996974,3.721,59301.0,59298.0,0.00062]
[1617368997185,3.721,59301.0,59283.0,0.04035151]
[1617368997186,0.76,59300.0,59283.0,0.04035151]
[1617368997378,5.46047941,59299.0,59292.0,0.004]
[1617368997575,2.06719281,59298.0,59293.0,0.985]
[1617368997779,0.38802,59297.0,59293.0,0.985]
[1617368997971,0.885,59296.0,59293.0,0.985]
[1617368998182,0.395,59296.0,59293.0,0.98]
[1617368998374,0.4,59294.0,59293.0,0.98]
[1617368998572,0.4,59294.0,59293.0,1.16281999]
[1617368998772,0.4,59294.0,59293.0,1.55083999]
[1617368998991,0.4,59294.0,59293.0,2.35583999]
[1617368999398,0.301,59301.0,59293.0,2.35583999]
[1617368999600,0.301,59301.0,59295.0,0.27904944]
[1617368999795,0.301,59301.0,59300.0,0.656]
[1617368999796,0.29956301,59301.0,59300.0,0.656]
[1617368999994,0.29956301,59301.0,59300.0,2.20683999]
[1617369000194,0.29956301,59301.0,59300.0,2.35683999]
[1617369000444,0.29956301,59301.0,59300.0,3.24183999]
[1617369000842,0.29956301,59301.0,59300.0,2.99183999]
[1617369001438,0.29956301,59301.0,59300.0,3.24183999]
[1617369002040,0.29956301,59301.0,59300.0,2.26183999]
[1617369002244,2.76956301,59301.0,59300.0,1.82402]
[1617369002440,0.68758301,59301.0,59300.0,2.021]
[1617369002655,0.3047802,59310.0,59300.0,7.60178373]
[1617369002846,0.4,59311.0,59303.0,0.98]
[1617369003047,0.4,59311.0,59310.0,0.975]
[1617369003249,0.05786758,59320.0,59311.0,0.89994374]
[1617369003457,0.05786758,59320.0,59318.0,0.5]
[1617369003650,0.05789021,59323.0,59320.0,0.27874974]
[1617369003850,0.03792825,59327.0,59321.0,1.475]
[1617369004049,0.15453873,59343.0,59325.0,0.006]
[1617369004254,0.15453873,59343.0,59333.0,0.004]
[1617369004460,0.3005,59348.0,59336.0,0.252823]
[1617369004461,0.15462246,59346.0,59336.0,0.252823]
[1617369004657,0.15463439,59347.0,59341.0,0.006]
[1617369004862,0.154779,59352.0,59342.0,1.475]
[1617369005058,0.15484883,59355.0,59345.0,0.5]
[1617369005255,0.15484883,59355.0,59351.0,0.163]
[1617369005454,0.15484883,59355.0,59353.0,0.39994374]
[1617369005455,0.002,59355.0,59353.0,0.39994374]
[1617369005656,0.002,59355.0,59354.0,2.572734]
[1617369005851,0.002,59355.0,59354.0,0.81555399]
[1617369006056,0.002,59355.0,59354.0,1.05555399]
[1617369006248,0.002,59355.0,59354.0,1.93311297]
[1617369006446,0.002,59355.0,59354.0,3.46805671]
[1617369006647,0.002,59355.0,59354.0,7.07805671]
[1617369006860,0.002,59355.0,59354.0,3.46805671]
[1617369007067,0.002,59355.0,59354.0,2.33305671]
[1617369007657,0.002,59355.0,59354.0,4.30805671]
[1617369007862,0.002,59355.0,59354.0,4.63505671]
[1617369008071,0.002,59355.0,59354.0,1.05750272]
[1617369008272,0.002,59355.0,59345.0,0.28059622]
[1617369008473,0.002,59355.0,59346.0,0.25]
[1617369008674,0.002,59355.0,59347.0,1.47803724]
[1617369008865,0.002,59355.0,59354.0,2.94355898]
[1617369009061,0.002,59355.0,59354.0,1.01632271]
[1617369009264,0.002,59355.0,59354.0,0.65855898]
[1617369009498,0.002,59355.0,59354.0,0.71637897]
[1617369009695,0.002,59355.0,59354.0,0.76637897]
[1617369010092,0.002,59355.0,59354.0,0.48881999]
[1617369010291,0.002,59355.0,59354.0,0.306]
[1617369010493,0.002,59355.0,59354.0,0.436]
[1617369010891,0.002,59355.0,59354.0,0.578]
[1617369011098,0.002,59355.0,59354.0,0.436]
[1617369011294,0.002,59355.0,59354.0,0.696]
[1617369011706,0.71511331,59355.0,59354.0,0.87881999]
[1617369011896,0.71511331,59355.0,59354.0,0.696]
[1617369012109,0.71511331,59355.0,59354.0,0.436]
[1617369012308,0.71511331,59355.0,59354.0,0.28]
[1617369012718,0.71511331,59355.0,59354.0,0.1]
[1617369012922,0.71511331,59355.0,59346.0,0.142]
[1617369012923,1.10321631,59355.0,59342.0,0.00703724]
[1617369013120,1.10321631,59355.0,59342.0,0.004]
[1617369013121,0.71511331,59355.0,59342.0,0.004]
[1617369013320,0.573103,59354.0,59342.0,0.034]
[1617369013512,0.575103,59354.0,59342.0,0.034]
[1617369013709,0.390103,59354.0,59342.0,0.034]
[1617369013918,0.390103,59354.0,59342.0,0.286806]
[1617369014115,0.002,59354.0,59342.0,0.83674974]
[1617369014517,0.002,59354.0,59345.0,0.0052]
[1617369014773,0.002,59354.0,59347.0,0.1]
[1617369014967,0.002,59354.0,59348.0,1.37494374]
[1617369015179,0.002,59354.0,59352.0,0.12110317]
[1617369015367,0.002,59354.0,59353.0,4.864668]
[1617369015622,0.002,59354.0,59353.0,6.93861174]
[1617369015813,0.002,59354.0,59353.0,7.17861174]
[1617369016020,0.71011331,59355.0,59354.0,5.16776373]
[1617369016212,0.71011331,59355.0,59354.0,2.53339071]
[1617369016416,0.71011331,59355.0,59354.0,3.04944697]
[1617369017809,0.71011331,59355.0,59354.0,3.19044697]
[1617369018409,0.71011331,59355.0,59354.0,5.74044697]
[1617369018611,0.71011331,59355.0,59354.0,3.59039071]
[1617369018810,0.71011331,59355.0,59354.0,4.48139071]
[1617369019015,0.71011331,59355.0,59354.0,4.08144697]
[1617369019413,0.71011331,59355.0,59354.0,4.83144697]
[1617369019611,0.71011331,59355.0,59354.0,5.47139071]
[1617369019812,0.71011331,59355.0,59354.0,5.52139071]
[1617369020418,0.71011331,59355.0,59354.0,4.84757072]
[1617369020613,0.71011331,59355.0,59354.0,3.77783173]
[1617369020814,0.71011331,59355.0,59354.0,3.29501174]
[1617369021213,0.71011331,59355.0,59354.0,3.78501174]
[1617369021414,0.71011331,59355.0,59354.0,3.96783173]
[1617369021614,0.71011331,59355.0,59354.0,4.94283173]
[1617369021817,0.71011331,59355.0,59354.0,5.24283173]
[1617369024216,0.71011331,59355.0,59354.0,3.31501174]
[1617369024421,0.69511331,59355.0,59354.0,2.82501174]
[1617369024622,0.69511331,59355.0,59354.0,3.29501174]
[1617369024821,0.69511331,59355.0,59354.0,3.78501174]
[1617369025020,0.69511331,59355.0,59354.0,3.14501174]
[1617369025245,0.69511331,59355.0,59354.0,3.16583173]
[1617369025447,0.69511331,59355.0,59354.0,2.53283173]
[1617369025641,0.69511331,59355.0,59354.0,3.10788799]
[1617369026041,0.69511331,59355.0,59354.0,3.82983173]
[1617369026241,0.69511331,59355.0,59354.0,4.13983173]
[1617369026441,0.69511331,59355.0,59354.0,4.77983173]
[1617369026642,0.69511331,59355.0,59354.0,5.07983173]
[1617369027453,0.69511331,59355.0,59354.0,3.29201174]
[1617369027660,0.7036016,59355.0,59354.0,0.47]
[1617369027886,0.11275525,59354.0,59339.0,0.40724688]
[1617369028077,0.002,59352.0,59339.0,0.40724688]
[1617369028274,0.11275525,59354.0,59339.0,0.323]
[1617369028476,0.00096833,59342.0,59339.0,0.323]
[1617369028679,0.00193623,59343.0,59341.0,1.26]
[1617369028877,0.002,59353.0,59342.0,4.199783]
[1617369029071,0.002,59353.0,59343.0,0.38729681]
[1617369029278,0.002,59353.0,59340.0,0.175]
[1617369029476,0.002,59353.0,59337.0,0.3]
[1617369029679,0.002,59353.0,59338.0,0.323]
[1617369030277,0.002,59353.0,59338.0,0.31]
[1617369030562,0.052,59353.0,59338.0,0.31]
[1617369030770,0.002,59353.0,59339.0,0.0046]
[1617369030965,0.002,59352.0,59339.0,0.0046]
[1617369031560,0.11253655,59351.0,59339.0,0.0046]
[1617369031960,0.11253655,59351.0,59339.0,0.1046]
[1617369032164,0.11253655,59351.0,59340.0,0.302809]
[1617369032369,0.11253655,59351.0,59341.0,0.1]
[1617369032563,0.14,59350.0,59341.0,0.1]
[1617369032760,0.51439,59350.0,59341.0,0.1]
[1617369032979,0.157,59345.0,59338.0,0.31]
[1617369033196,0.27632428,59343.0,59338.0,0.31]
[1617369033389,0.388103,59342.0,59338.0,0.31]
[1617369033587,0.11138277,59341.0,59338.0,0.31]
[1617369033792,0.388103,59339.0,59338.0,0.31]
[1617369033985,0.438103,59339.0,59338.0,0.31]
[1617369034184,0.54945948,59339.0,59338.0,0.31]
[1617369034384,0.438103,59339.0,59338.0,0.31]
[1617369034785,0.633103,59339.0,59338.0,0.31]
[1617369035003,1.35992728,59339.0,59338.0,0.31]
[1617369035197,1.71492728,59339.0,59296.0,0.00303724]
[1617369035397,0.11038772,59326.0,59301.0,0.9335]
[1617369035590,0.3005,59315.0,59302.0,0.00303724]
[1617369035809,0.388103,59313.0,59302.0,0.00303724]
[1617369036009,0.46948,59313.0,59300.0,0.004]
[1617369036211,0.002,59310.0,59297.0,0.00303724]
[1617369036407,0.002,59310.0,59298.0,1.363103]
[1617369036606,0.002,59310.0,59299.0,0.00303724]
[1617369036809,0.002,59310.0,59300.0,0.345]
[1617369037404,0.388103,59309.0,59296.0,0.16]
[1617369038006,0.544103,59309.0,59296.0,0.16]
[1617369038432,0.00826436,59308.0,59296.0,0.16]
[1617369038634,0.388103,59307.0,59296.0,0.16]
[1617369038838,0.388103,59307.0,59291.0,0.14]
[1617369039034,0.00826436,59308.0,59292.0,1.55776373]
[1617369039236,0.00826436,59308.0,59293.0,0.39994374]
[1617369039434,0.00826436,59308.0,59293.0,0.49994374]
[1617369039632,0.00826436,59308.0,59294.0,0.165]
[1617369040037,0.00826436,59308.0,59295.0,0.165]
[1617369040238,0.126516,59303.0,59295.0,0.70494374]
[1617369040436,0.44085299,59303.0,59296.0,0.57092299]
[1617369040643,0.31433699,59303.0,59297.0,0.60534]
[1617369040844,0.31433699,59303.0,59298.0,1.83494374]
[1617369041052,0.31433699,59303.0,59299.0,2.04584673]
[1617369041253,0.31433699,59303.0,59300.0,1.37494374]
[1617369041452,0.31433699,59303.0,59301.0,0.81532]
[1617369041660,0.31433699,59303.0,59302.0,0.14]
[1617369041857,0.31433699,59303.0,59302.0,0.738062]